Cogmind - Beta 15 @@@ ROGUE MODE // 2025.09.06 @ 13:55:55 Player: puppuppit Result: Destroyed by G-34 Mercenary with Small Laser Performance ------------- Evolutions (0) 0 Regions Visited (4) 800 Robots Destroyed (51) 255 Value Destroyed (849) 849 Prototype IDs (23) 460 Alien Tech Used (0) 0 Bonus (300) 300 TOTAL SCORE: 2664 Bonus ------- Aligned with FarCom 300 Cogmind --------- Core Integrity 0/250 Matter 242/300 Energy 91/100 System Corruption 5% Temperature Cool (8) Movement Treading (160) Location -9/Mines Parts ------- > --- POWER (1) -------- (None) > --- PROPULSION (2) --- Light Treads Light Treads > --- UTILITY (2) ------ High-capacity Storage Unit > --- WEAPON (2) ------- (None) > --- INVENTORY (20) --- Light Nuclear Core Reinforced Deuterium Engine Light Treads Heat Sink Improved Heat Sink Large Storage Unit High-capacity Matter Pod (200) High-capacity Matter Pod (200) Trap Scanner Modified TNC Shield Generator Shield Generator Beam Cannon Beam Cannon Beam Cannon Beam Cannon Beam Cannon Rocket Launcher Rocket Launcher Peak State ------------ > --- POWER ------------ Light Nuclear Core > --- PROPULSION ------- Light Treads Light Treads > --- UTILITY ---------- Improved Heat Sink Large Storage Unit > --- WEAPON ----------- Beam Cannon Rocket Launcher > --- INVENTORY -------- Light Nuclear Core Light Treads Wheel Wheel Heat Sink High-capacity Matter Pod High-capacity Matter Pod Transport Network Coupler Shield Generator Shield Generator Beam Cannon Beam Cannon Beam Cannon Beam Cannon Rocket Launcher [Rating: 14] Favorites ----------- Power Light Nuclear Core Engine Light Ion Engine Power Core Light Nuclear Core Propulsion Light Treads Treads Light Treads Utility Large Storage Unit Device Heat Sink Storage Large Storage Unit Weapon Beam Cannon Energy Gun EM Pulse Gun Energy Cannon Beam Cannon Launcher Rocket Launcher Slashing Weapon Mining Claw Build | -11 -10 -10 -10 -9 ------- Run | Yrd Mat Min Exi Min Slots Evolved . | . . . . . Power . | . . . . . Propulsion . | . . . . . Utility . | . . . . . Weapon . | . . . . . Parts Attached 21 | 7 9 3 2 . Power 4 | 1 1 1 1 . Engine 1 | 1 . . . . Core 3 | . 1 1 1 . Reactor . | . . . . . Propulsion 4 | 2 2 . . . Treads 4 | 2 2 . . . Leg . | . . . . . Wheel . | . . . . . Hover . | . . . . . Flight . | . . . . . Utility 6 | 2 2 1 1 . Device 3 | 1 1 1 . . Storage 3 | 1 1 . 1 . Processor . | . . . . . Hackware . | . . . . . Protection . | . . . . . Artifact . | . . . . . Weapon 7 | 2 4 1 . . Energy Gun 2 | 2 . . . . Energy Cannon 3 | . 3 . . . Ballistic Gun . | . . . . . Ballistic Cannon . | . . . . . Launcher 1 | . . 1 . . Special Weapon . | . . . . . Impact Weapon . | . . . . . Slashing Weapon 1 | . 1 . . . Piercing Weapon . | . . . . . Special Melee Weapon . | . . . . . Unidentified Prototypes . | . . . . . Corrupted Parts 1 | . 1 . . . System Corruption 5 | . 5 . . . Parts Lost 4 | . 2 1 . 1 Power 3 | . 1 1 . 1 Propulsion 1 | . 1 . . . Utility . | . . . . . Weapon . | . . . . . Highest Loss Streak 1 | . 1 1 . 1 To Critical Strikes . | . . . . . Average Backups 13 | 2 12 15 16 18 Power 1 | . . 1 2 2 Propulsion 3 | 2 3 3 1 1 Utility 4 | . 3 6 7 8 Weapon 4 | . 4 5 6 7 Tool/Special . | . . . . . Unused Backups 30 | 1 12 1 2 14 Power 4 | . 1 . . 3 Propulsion 8 | . 5 . 2 1 Utility 14 | . 6 1 . 7 Weapon 4 | 1 . . . 3 Tool/Special . | . . . . . Average Slot Usage (%) 93 | . 98 99 72 71 Core 12 | . 11 13 14 14 Treads 28 | . 28 28 28 28 Device 13 | . 13 14 14 14 Storage 14 | . 14 14 14 14 Energy Gun 2 | . 4 . . . Energy Cannon 19 | . 23 27 1 . Peak Build Rating 14 | 9 12 14 13 12 Average Rating 10 | 7 9 12 11 10 On Entrance 9 | . 9 11 13 13 Naked Turns . | . . . . . Heaviest Build 46 | 13 32 33 46 46 Greatest Support 40 | 40 40 40 40 40 Greatest Overweight (x) 3 | . 3 . 1 1 Average Overweight (x) . | . . . . . Largest Inventory Capacity 20 | 8 15 15 20 20 Average Capacity 14 | 7 12 15 18 20 Most Carried 20 | 7 15 15 20 19 Average Carried 13 | 3 12 14 16 18 Final Capacity 20 | 8 15 15 20 20 Final Carried 20 | 7 15 15 20 19 Class Distribution -------------------- 100% | Mutant Dominant Class ---------------- Mutant | -10/Materials Mutant | -10/Mines Mutant | -10/Exiles Mutant | -9/Mines Resources | -11 -10 -10 -10 -9 ----------- Run | Yrd Mat Min Exi Min Matter Collected 1215 | 270 708 237 . . Remotely . | . . . . . Salvage Created 1562 | 201 1115 246 . . Parts 102 | 22 62 18 . . Haulers Intercepted 1 | . 1 . . . Recyclers Shooed 3 | . 1 2 . . Parts Field Recycled . | . . . . . Retrieved Matter . | . . . . . Parts Self-Destructed . | . . . . . Prevented . | . . . . . Kills | -11 -10 -10 -10 -9 ------- Run | Yrd Mat Min Exi Min Combat Hostiles Destroyed 24 | . 19 5 . . Guns 4 | . 4 . . . Cannons 15 | . 14 1 . . AOE 4 | . . 4 . . Classes Destroyed 10 | 3 7 . . . Worker 6 | 2 3 1 . . Builder 4 | . 1 3 . . Tunneler 5 | 4 . 1 . . Hauler 1 | . 1 . . . Recycler 6 | 1 4 1 . . Mechanic 1 | . 1 . . . Operator 1 | . 1 . . . Watcher 3 | . 3 . . . Swarmer 8 | . 5 3 . . Grunt 16 | . 14 2 . . Best Kill Streak 7 | 5 6 7 . . Combat Bots Only 6 | . 6 3 . . Max Kills in Single Turn 4 | 1 2 4 . . Gunslinging . | . . . . . Exploded 2 | . . 2 . . Melee . | . . . . . Uniques/NPCs Destroyed . | . . . . . Combat | -11 -10 -10 -10 -9 -------- Run | Yrd Mat Min Exi Min Hostile Shots Fired 89 | . 57 12 . 20 Missed 31 | . 19 5 . 7 Hits 58 | . 38 7 . 13 Projectile 58 | . 38 7 . 13 Damage Taken 966 | . 541 202 . 223 Core 250 | . 124 60 . 66 Absorbed by Shields . | . . . . . Regen/Repaired (Parts) 39 | . 39 . . . Core Remaining (%) 100 | 100 . . . . Volleys Fired 97 | 20 65 12 . . Largest 2 | 2 2 2 . . Hottest 120 | 90 120 120 . . Shots Fired 187 | 40 128 19 . . Gun 75 | 40 35 . . . Cannon 108 | . 93 15 . . Launcher 4 | . . 4 . . Special . | . . . . . Kinetic . | . . . . . Thermal 140 | 20 105 15 . . Explosive 4 | . . 4 . . Electromagnetic 43 | 20 23 . . . Robot Hit Streak 17 | 7 17 6 . . Robot Miss Streak 5 | 5 5 3 . . Penetration Max . | . . . . . Secondary Targets 1 | . 1 . . . Max Gunslinging Chain 1 | . 1 . . . Shots Hit Robots 111 | 24 74 13 . . Core Hits 57 | 8 36 13 . . Critical Kills 2 | . 2 . . . Critical Parts Destroyed . | . . . . . Critical Strikes 2 | . 2 . . . Meltdown 2 | . 2 . . . Melee Attacks 1 | . 1 . . . Impact . | . . . . . Slashing 1 | . 1 . . . Piercing . | . . . . . Sneak Attacks 1 | . 1 . . . Combat Hostiles . | . . . . . Follow-up Attacks . | . . . . . Damage Inflicted 2266 | 348 1275 643 . . Guns 591 | 322 269 . . . Cannons 1150 | . 960 190 . . Explosions 479 | 26 . 453 . . Melee 46 | . 46 . . . Ramming . | . . . . . Kinetic . | . . . . . Thermal 1364 | 150 1024 190 . . Explosive 453 | . . 453 . . Electromagnetic 403 | 198 205 . . . Impact . | . . . . . Slashing 46 | . 46 . . . Piercing . | . . . . . Highest Corruption 5 | . 5 5 5 5 Average Corruption 5 | . 5 5 5 5 Corruption Purged . | . . . . . Corruption Blocked . | . . . . . Effects 73 | . 41 16 16 . Message Errors 14 | . 7 4 3 . Matter Fused 16 | . 8 5 3 . Heat Flow Errors 10 | . 6 1 3 . Energy Discharges 10 | . 9 1 . . Parts Fused 1 | . . . 1 . Data Loss (minor) 6 | . 2 1 3 . Data Loss (major) 5 | . 1 1 3 . Misfires 4 | . 4 . . . Alerts 4 | . 3 1 . . Weapon Failures 3 | . 1 2 . . Overload Shots . | . . . . . Overflow Damage 43 | . 6 37 . . Projectiles 5 | . . 5 . . Explosions 32 | . . 32 . . Melee 6 | . 6 . . . Knockbacks . | . . . . . Impact . | . . . . . Kinetic . | . . . . . Secondary . | . . . . . Self-Inflicted Damage 128 | . . 128 . . Shots 4 | . . 4 . . Rammed . | . . . . . Targets Rammed . | . . . . . Kicked . | . . . . . Crushed . | . . . . . Highest Temperature 347 | 180 347 85 101 . Average Temperature 77 | 85 80 22 57 . Received Heat Transfer 309 | . 192 24 . 93 Effects 3 | . 3 . . . Energy Bleed 1 | . 1 . . . Interference 2 | . 2 . . . Siege Activations . | . . . . . Martial Activations . | . . . . . Shielding Activations . | . . . . . Robots Disrupted . | . . . . . Combat Hostiles . | . . . . . Robots Corrupted . | . . . . . Combat Hostiles . | . . . . . Parts Fried . | . . . . . Impact Corruptions . | . . . . . Robots Melted 2 | . 2 . . . Combat Hostiles 1 | . 1 . . . Parts Melted 5 | . 5 . . . Heat Transferred 2997 | 370 2220 407 . . Parts Sabotaged . | . . . . . Parts Stolen . | . . . . . Parts Stripped . | . . . . . Power Chain Reactions 1 | 1 . . . . Alert | -11 -10 -10 -10 -9 ------- Run | Yrd Mat Min Exi Min Maximum Alert Level 1 | . 1 . . . Low Security (%) 86 | 100 79 100 . 100 Level 1 13 | . 20 . . . Level 2 . | . . . . . Level 3 . | . . . . . Level 4 . | . . . . . Level 5 . | . . . . . High Security . | . . . . . Max Security . | . . . . . Peak Influence 326 | 10 326 195 . . Initial 120 | . . 120 . . Average 73 | 1 78 84 . . Influence Increases 938 | 35 713 190 . . Destroy 0b10 Robot/C 480 | . 380 100 . . Destroy 0b10 Robot/NC 135 | 35 70 30 . . Destroy Leader 118 | . 98 20 . . Successful Hack 27 | . 27 . . . Select Force Hacks 60 | . 60 . . . Disable Machine 15 | . 15 . . . Destroy Structure 43 | . 3 40 . . Lose Combat Pursuer 60 | . 60 . . . Influence Decreases 938 | 35 404 499 . . Entered New Map 189 | . . 189 . . Time Decay 719 | 35 384 300 . . Lost Part 30 | . 20 10 . . Squads Dispatched 5 | . 5 . . . Investigation 4 | . 4 . . . Extermination . | . . . . . Reinforcement 1 | . 1 . . . Assault . | . . . . . Garrison . | . . . . . Intercept . | . . . . . Searches Triggered . | . . . . . Construction Impeded . | . . . . . Haulers Reinforced . | . . . . . Active Scanning Responses . | . . . . . Cargo Convoy Interrupts . | . . . . . Stealth | -11 -10 -10 -10 -9 --------- Run | Yrd Mat Min Exi Min Distress Signals 1 | . 1 . . . Communications Jammed . | . . . . . Distress Signals . | . . . . . Times Spotted 40 | . 32 5 . 3 Peak Tracking Total 8 | . 8 3 . 3 Tactical Retreats 3 | . 3 . . . Traps | -11 -10 -10 -10 -9 ------- Run | Yrd Mat Min Exi Min Traps Triggered 2 | . 2 . . . Indirectly . | . . . . . Trap Hack Attempts . | . . . . . Triggered . | . . . . . Disarmed . | . . . . . Reprogrammed . | . . . . . Reused . | . . . . . Traps Extracted . | . . . . . Installed . | . . . . . Triggered . | . . . . . Machines | -11 -10 -10 -10 -9 ---------- Run | Yrd Mat Min Exi Min Machines Disabled 1 | . 1 . . . Max in Single Turn 1 | . 1 . . . Machines Repaired . | . . . . . Machines Dismantled . | . . . . . Machines Sabotaged . | . . . . . Overloaded Fab Kills . | . . . . . Hacking | -11 -10 -10 -10 -9 --------- Run | Yrd Mat Min Exi Min Machines Accessed 14 | . 11 1 2 . Terminals 8 | . 8 . . . Fabricators . | . . . . . Repair Stations 1 | . 1 . . . Recycling Units 2 | . 2 . . . Scanalyzers . | . . . . . Garrison Access . | . . . . . Total Hacks 34 | . 31 1 2 . Successful 22 | . 19 1 2 . Failed 12 | . 12 . . . Catastrophic . | . . . . . Database Lockouts . | . . . . . Manual 26 | . 25 . 1 . Terminals 23 | . 23 . . . Fabricators . | . . . . . Repair Stations 4 | . 4 . . . Recycling Units 4 | . 4 . . . Scanalyzers . | . . . . . Garrison Access . | . . . . . Terminal Hacks 6 | . 3 1 2 . Record 1 | . . . 1 . Robot Analysis 3 | . 3 . . . Open Door 1 | . . 1 . . Proto ID Catalog 1 | . . . 1 . Fabricator Hacks . | . . . . . Repair Station Hacks 2 | . 2 . . . Scan Component 1 | . 1 . . . Repair 1 | . 1 . . . Recycling Unit Hacks . | . . . . . Scanalyzer . | . . . . . Garrison Access Hacks . | . . . . . Unauthorized Hacks 14 | . 14 . . . Terminals 10 | . 10 . . . Botnet 4 | . 4 . . . Operators 1 | . 1 . . . Skim 5 | . 5 . . . Fabricators . | . . . . . Repair Stations . | . . . . . Recycling Units 4 | . 4 . . . Recyclers 1 | . 1 . . . Mask 1 | . 1 . . . Tunnel 2 | . 2 . . . Scanalyzers . | . . . . . Garrison Access . | . . . . . Data Cores Recovered . | . . . . . Used . | . . . . . Hacking Detections 9 | . 9 . . . Full Trace Events . | . . . . . Feedback Events . | . . . . . Feedback Blocked . | . . . . . Robot Schematics Acquired . | . . . . . Robots Built . | . . . . . Authchips . | . . . . . Time . | . . . . . Total Robot Build Rating . | . . . . . Part Schematics Acquired . | . . . . . Parts Built . | . . . . . Authchips . | . . . . . Time . | . . . . . Total Part Build Rating . | . . . . . Parts Repaired 1 | . 1 . . . Time 26 | . 26 . . . Parts Recycled . | . . . . . Recycled Matter . | . . . . . Retrieved Matter . | . . . . . Retrieved Components . | . . . . . Parts Scanalyzed . | . . . . . Part Schematics Acquired . | . . . . . Parts Damaged . | . . . . . Bothacking | -11 -10 -10 -10 -9 ------------ Run | Yrd Mat Min Exi Min Used RIF Installer . | . . . . . Robots Hacked . | . . . . . Non-combat . | . . . . . Combat . | . . . . . Robot Hacks Applied . | . . . . . Relay Couplers Released . | . . . . . Fabnet Peak Effective % . | . . . . . Robots Rewired . | . . . . . Allies Hacked . | . . . . . Hacks Repelled . | . . . . . Allies | -11 -10 -10 -10 -9 -------- Run | Yrd Mat Min Exi Min Total Allies . | . . . . . Largest Group . | . . . . . Highest-Rated Group . | . . . . . Highest-Rated Ally . | . . . . . Total Orders . | . . . . . Ally Attacks . | . . . . . Total Damage . | . . . . . Kills . | . . . . . Allies Corrupted . | . . . . . Allies Melted . | . . . . . Intel | -11 -10 -10 -10 -9 ------- Run | Yrd Mat Min Exi Min Active Infowar (turns) 379 | 152 227 . . . Terrain 379 | 152 227 . . . Robot Analysis Total 3 | . 3 . . . Derelict Logs Recovered 1 | . . 1 . . Drone Launches . | . . . . . Drone Recoveries . | . . . . . Exploration | -11 -10 -10 -10 -9 ------------- Run | Yrd Mat Min Exi Min Turns Passed 3755 | 234 2068 766 673 14 Spaces Moved 1716 | 101 854 447 308 6 Core 8 | 5 3 . . . Treads 1708 | 96 851 447 308 6 Legs . | . . . . . Wheels . | . . . . . Hover . | . . . . . Flight . | . . . . . Fastest Speed 50 | 50 160 160 160 160 Average Speed 169 | 154 160 160 214 226 Slowest Speed 240 | 160 200 160 240 240 Overloaded Moves . | . . . . . Propulsion Burnouts . | . . . . . Robots Hopped . | . . . . . Potential Cave-ins . | . . . . . Cave-ins Triggered . | . . . . . Exploration Rate (%) 50 | 4 94 88 60 6 Regions Visited 4 Branch Regions 3 Pre-discovered Areas 5 | . 2 2 1 . Known Exits Taken 1 | . 1 . . . Unknown Exits Taken 3 | 1 . 1 1 . Scrap Searched 1 | . . 1 . . Spaces Dug . | . . . . . Terrain Destroyed 51 | 3 . 48 . . Melee . | . . . . . Projectile . | . . . . . AOE 51 | 3 . 48 . . Terrain Rammed . | . . . . . Walls Destroyed . | . . . . . Machines Disabled . | . . . . . Actions | -11 -10 -10 -10 -9 --------- Run | Yrd Mat Min Exi Min Total 2383 | 136 1437 478 323 9 Wait 463 | . 457 6 . . Move 1712 | 100 853 446 307 6 Hop . | . . . . . Pick Up 47 | 8 28 4 7 . Fast Attach 11 | 7 3 1 . . Attach 1 | . 1 . . . Detach 3 | . . . 2 1 Swap 14 | . 7 5 2 . Drop 34 | 1 22 4 5 2 Fire 97 | 20 65 12 . . Melee 1 | . 1 . . . Ram . | . . . . . Kick . | . . . . . Crush . | . . . . . Escape Stasis . | . . . . . Rewire . | . . . . . Trap . | . . . . . Miscellaneous . | . . . . . Route ------- -11/Scrapyard -10/Materials (discovered 4 exits: *Mat x3 / *Min) -10/Mines (discovered 4 exits: *Mat x2 / *Exi / [*Sub]) -10/Exiles -9/Mines History --------- Turn | Location | Event 4 | -11/Scrapyard | Discovered new exit (range 14) 235 | -11/Scrapyard | Entered Materials 313 | -10/Materials | Build established: Mutant 725 | -10/Materials | Repaired Beam Cannon 1389 | -10/Materials | Identified exit to Materials 1389 | -10/Materials | Identified exit to Mines 1599 | -10/Materials | Loaded intel: 2 recycling unit locations 1648 | -10/Materials | Learned Storage stockpile data 2303 | -10/Materials | Entered Mines 2438 | -10/Mines | Core integrity fell below 50% 2481 | -10/Mines | Discovered exit to Materials (range 11) 2673 | -10/Mines | Discovered new exit (range 6) 2765 | -10/Mines | Met a Derelict who couldn't figure out how to use a Trap Extractor 3035 | -10/Mines | Learned location of Storage (-8) 3059 | -10/Mines | Deemed a non-threat by the Exiles lab entrance 3061 | -10/Mines | Discovered new exit (range 5) 3069 | -10/Mines | Entered Exiles 3093 | -10/Exiles | Discovered new exit (range 15) 3137 | -10/Exiles | Met 8R-AWN 3162 | -10/Exiles | Met EX-HEX 3274 | -10/Exiles | Met EX-DEC 3313 | -10/Exiles | Learned location of Zion (-7) 3373 | -10/Exiles | Met EX-BIN 3402 | -10/Exiles | Aligned with FarCom system 3404 | -10/Exiles | Given EX-Vault access code 3462 | -10/Exiles | Opened EX-Vault 3476 | -10/Exiles | Found Modified TNC 3525 | -10/Exiles | Warned to stay clear of 0b10 Research branches 3742 | -10/Exiles | Left Exiles lab with Modified TNC 3742 | -10/Exiles | Entered Mines 3743 | -9/Mines | Assembled infested the area 3751 | -9/Mines | Core integrity fell below 20% 3756 | -9/Mines | Destroyed by G-34 Mercenary with Small Laser Last Messages --------------- HEX's prototypes. 03538_ System corrupted: Matter fused (-9). 03585_ E2WFN/2R8>GJ0FWWU#WWKLLWYSZKP0FLG5ORNV 03600_ GTZKHUT|BEWHV:A SMI:WJVC